[Event "FIDE Open World Rapid 2024"]
[Site "New York"]
[Date "2024.12.27"]
[Round "9.39"]
[White "Suleymanli, Aydin"]
[Black "Onischuk, Alexander"]
[Result "1-0"]
[ECO "C26"]
[WhiteElo "2623"]
[BlackElo "2640"]
[Annotator "ChessBase"]
[PlyCount "71"]
[EventDate "2024.12.14"]
[EventType "swiss"]
[EventCountry "USA"]
[SourceTitle "playchess.com"]
[Source "ChessBase"]
[SourceQuality "1"]
[TimeControl "900+10"]

1. e4 {[%emt 0:00:03]} e5 {[%emt 0:00:01]} 2. Nc3 {[%emt 0:00:08]} Nf6 {[%emt 0:00:06]} 3. d4 {[%emt 0:00:01]} exd4 {[%emt 0:00:06]} 4. Qxd4 {[%emt 0:00:02]} Nc6 {[%emt 0:00:02]} 5. Qd3 {[%emt 0:00:02]} d6 {[%emt 0:00:24]} 6. Bf4 {[%emt 0:01:23]} g6 {[%emt 0:00:20]} 7. O-O-O {[%emt 0:00:06]} Bg7 {[%emt 0:00:04]} 8. Qd2 {[%emt 0:01:07]} O-O {[%emt 0:00:55]} 9. Bh6 {[%emt 0:00:12]} Re8 {[%emt 0:00:44]} 10. Bxg7 {[%emt 0:00:02]} Kxg7 {[%emt 0:00:01]} 11. f3 {[%emt 0:00:01]} a6 {[%emt 0:00:46]} 12. g4 {[%emt 0:00:17]} b5 {[%emt 0:00:59]} 13. h4 {[%emt 0:01:02]} b4 {[%emt 0:06:16]} 14. Nce2 {[%emt 0:00:01]} h5 {[%emt 0:00:59]} 15. g5 {[%emt 0:00:21]} Nd7 {[%emt 0:00:07]} 16. Nf4 {[%emt 0:00:14]} Nc5 {[%emt 0:00:28]} 17. Nd5 {[%emt 0:00:27]} Be6 {[%emt 0:00:18]} 18. Nxb4 {[%emt 0:00:24]} Nxb4 {[%emt 0:00:22]} 19. Qxb4 {[%emt 0:00:10]} Rb8 {[%emt 0:00:03]} 20. Qc3+ {[%emt 0:00:20]} Kh7 {[%emt 0:00:41]} 21. b3 {[%emt 0:00:11]} a5 {[%emt 0:00:26]} 22. Ne2 {[%emt 0:00:31]} a4 {[%emt 0:00:30]} 23. Nd4 {[%emt 0:00:27]} axb3 {[%emt 0:00:17]} 24. axb3 {[%emt 0:00:16]} Qd7 {[%emt 0:00:33]} 25. Nxe6 {[%emt 0:00:15]} Nxe6 {[%emt 0:00:31]} 26. Bc4 {[%emt 0:00:50]} Qe7 {[%emt 0:00:31]} 27. Kb2 {[%emt 0:02:03]} Nf4 {[%emt 0:00:09]} 28. Rd2 {[%emt 0:03:59]} Ra8 {[%emt 0:01:02]} 29. Qf6 {[%emt 0:02:17]} Qxf6+ {[%emt 0:00:19]} 30. gxf6 {[%emt 0:00:02]} Kg8 {[%emt 0:00:11]} 31. Kc3 {[%emt 0:00:42]} Ra2 {[%emt 0:01:09]} 32. Kd4 {[%emt 0:00:26]} Ne6+ {[%emt 0:00:09]} 33. Ke3 {[%emt 0:00:16]} Nc5 {[%emt 0:00:03]} 34. Rg1 {[%emt 0:00:31]} Kf8 {[%emt 0:00:03]} 35. Rg5 {[%emt 0:00:17]} Ra1 {[%emt 0:00:11]} 36. Rxc5 {[%emt 0:00:05]} 1-0

[Event "FIDE Open World Rapid 2024"]
[Site "New York"]
[Date "2024.12.28"]
[Round "9.39"]
[White "Soo, Kai Jie"]
[Black "Kvaloy, Aksel Bu"]
[Result "0-1"]
[ECO "E11"]
[WhiteElo "2153"]
[BlackElo "2490"]
[Annotator "ChessBase"]
[PlyCount "68"]
[EventDate "2024.12.14"]
[EventType "swiss"]
[EventCountry "USA"]
[SourceTitle "playchess.com"]
[Source "ChessBase"]
[SourceQuality "1"]
[TimeControl "900+10"]

1. d4 {[%emt 0:00:01]} Nf6 {[%emt 0:00:01]} 2. c4 {[%emt 0:00:01]} e6 {[%emt 0:00:02]} 3. g3 {[%emt 0:00:01]} d5 {[%emt 0:00:08]} 4. Nf3 {[%emt 0:00:01]} Bb4+ {[%emt 0:00:04]} 5. Bd2 {[%emt 0:00:00]} Be7 {[%emt 0:00:02]} 6. Bg2 {[%emt 0:00:02]} Nbd7 {[%emt 0:00:05]} 7. O-O {[%emt 0:00:06]} c6 {[%emt 0:00:01]} 8. Qc2 {[%emt 0:00:02]} Ne4 {[%emt 0:00:02]} 9. Bf4 {[%emt 0:00:08]} g5 {[%emt 0:00:11]} 10. Be3 {[%emt 0:00:01]} O-O {[%emt 0:01:49]} 11. Nfd2 {[%emt 0:00:59]} Nd6 {[%emt 0:01:06]} 12. f3 {[%emt 0:00:30]} Nf5 {[%emt 0:00:58]} 13. Bf2 {[%emt 0:00:02]} Bf6 {[%emt 0:00:02]} 14. e3 {[%emt 0:01:26]} b6 {[%emt 0:01:45]} 15. Nc3 {[%emt 0:01:20]} Bb7 {[%emt 0:00:13]} 16. Ne2 {[%emt 0:01:19]} Bg7 {[%emt 0:00:22]} 17. e4 {[%emt 0:00:22]} Ne7 {[%emt 0:00:03]} 18. f4 {[%emt 0:00:18]} g4 {[%emt 0:02:21]} 19. f5 {[%emt 0:00:20]} exf5 {[%emt 0:00:03]} 20. exd5 {[%emt 0:00:21]} cxd5 {[%emt 0:00:08]} 21. Nf4 {[%emt 0:02:42]} Nf6 {[%emt 0:00:05]} 22. cxd5 {[%emt 0:00:09]} Rc8 {[%emt 0:00:08]} 23. Qa4 {[%emt 0:00:20]} Nexd5 {[%emt 0:00:27]} 24. Qxa7 {[%emt 0:00:57]} Nxf4 {[%emt 0:01:06]} 25. Bxb7 {[%emt 0:00:34]} Nh3+ {[%emt 0:00:01]} 26. Kg2 {[%emt 0:00:31]} Rc2 {[%emt 0:00:11]} 27. Rad1 {[%emt 0:00:21]} Nxf2 {[%emt 0:00:44]} 28. Rxf2 {[%emt 0:00:04]} Qxd4 {[%emt 0:00:02]} 29. a4 {[%emt 0:01:55]} Ne4 {[%emt 0:00:46]} 30. Nxe4 {[%emt 0:00:19]} Qxd1 {[%emt 0:00:09]} 31. Qxb6 {[%emt 0:01:05]} fxe4 {[%emt 0:00:24]} 32. Bxe4 {[%emt 0:00:05]} Rxf2+ {[%emt 0:00:12]} 33. Qxf2 {[%emt 0:00:02]} Re8 {[%emt 0:00:19]} 34. Bc2 {[%emt 0:00:02]} Qd5+ {[%emt 0:00:12]} 0-1

[Event "FIDE Open World Rapid 2024"]
[Site "New York"]
[Date "2024.12.27"]
[Round "9.40"]
[White "Woodward, Andy"]
[Black "Oparin, Grigoriy"]
[Result "1/2-1/2"]
[ECO "E08"]
[WhiteElo "2530"]
[BlackElo "2653"]
[Annotator "ChessBase"]
[PlyCount "118"]
[EventDate "2024.12.14"]
[EventType "swiss"]
[EventCountry "USA"]
[SourceTitle "playchess.com"]
[Source "ChessBase"]
[SourceQuality "1"]
[TimeControl "900+10"]

1. d4 {[%emt 0:00:18]} Nf6 {[%emt 0:00:02]} 2. c4 {[%emt 0:00:02]} e6 {[%emt 0:00:01]} 3. g3 {[%emt 0:00:02]} d5 {[%emt 0:00:05]} 4. Bg2 {[%emt 0:00:05]} Bb4+ {[%emt 0:00:08]} 5. Bd2 {[%emt 0:00:02]} a5 {[%emt 0:00:17]} 6. Nf3 {[%emt 0:00:10]} O-O {[%emt 0:00:05]} 7. Qc2 {[%emt 0:00:10]} c6 {[%emt 0:00:09]} 8. O-O {[%emt 0:00:12]} Be7 {[%emt 0:00:04]} 9. Bf4 {[%emt 0:00:12]} Nbd7 {[%emt 0:00:27]} 10. Rd1 {[%emt 0:01:09]} Nh5 {[%emt 0:00:19]} 11. Bc1 {[%emt 0:00:45]} Nhf6 {[%emt 0:00:04]} 12. Nbd2 {[%emt 0:02:10]} b6 {[%emt 0:01:51]} 13. e4 {[%emt 0:00:11]} Bb7 {[%emt 0:00:01]} 14. b3 {[%emt 0:00:16]} a4 {[%emt 0:02:18]} 15. Bb2 {[%emt 0:01:26]} Nxe4 {[%emt 0:00:36]} 16. Nxe4 {[%emt 0:00:04]} dxe4 {[%emt 0:00:02]} 17. Qxe4 {[%emt 0:00:05]} Qc7 {[%emt 0:00:58]} 18. Qe2 {[%emt 0:01:28]} Rfe8 {[%emt 0:01:05]} 19. Bc3 {[%emt 0:01:04]} c5 {[%emt 0:02:27]} 20. dxc5 {[%emt 0:01:36]} bxc5 {[%emt 0:00:03]} 21. Rd3 {[%emt 0:04:27]} axb3 {[%emt 0:00:50]} 22. Rad1 {[%emt 0:00:01]} Nf6 {[%emt 0:01:04]} 23. axb3 {[%emt 0:00:01]} Red8 {[%emt 0:00:34]} 24. Ne5 {[%emt 0:02:28]} Rxd3 {[%emt 0:01:30]} 25. Rxd3 {[%emt 0:00:02]} Rd8 {[%emt 0:00:07]} 26. Rxd8+ {[%emt 0:00:42]} Bxd8 {[%emt 0:00:02]} 27. Bf3 {[%emt 0:00:18]} Be7 {[%emt 0:00:20]} 28. Kg2 {[%emt 0:00:11]} Nd7 {[%emt 0:01:01]} 29. Nd3 {[%emt 0:00:10]} Bc6 {[%emt 0:00:40]} 30. Bb2 {[%emt 0:00:12]} Qb7 {[%emt 0:00:15]} 31. Bxc6 {[%emt 0:00:01]} Qxc6+ {[%emt 0:00:02]} 32. Qf3 {[%emt 0:00:01]} Qxf3+ {[%emt 0:00:21]} 33. Kxf3 {[%emt 0:00:01]} f6 {[%emt 0:00:02]} 34. Ke3 {[%emt 0:00:13]} g5 {[%emt 0:00:21]} 35. h3 {[%emt 0:00:20]} Kf7 {[%emt 0:00:11]} 36. Bc3 {[%emt 0:00:08]} h5 {[%emt 0:00:56]} 37. b4 {[%emt 0:00:20]} cxb4 {[%emt 0:00:02]} 38. Bxb4 {[%emt 0:00:03]} Bxb4 {[%emt 0:00:07]} 39. Nxb4 {[%emt 0:00:01]} Ke7 {[%emt 0:00:09]} 40. Nd3 {[%emt 0:00:04]} Kd6 {[%emt 0:01:41]} 41. Kd4 {[%emt 0:00:01]} Kc6 {[%emt 0:00:01]} 42. f3 {[%emt 0:00:36]} h4 {[%emt 0:00:21]} 43. gxh4 {[%emt 0:00:03]} gxh4 {[%emt 0:00:01]} 44. f4 {[%emt 0:00:09]} e5+ {[%emt 0:00:26]} 45. fxe5 {[%emt 0:00:13]} Nxe5 {[%emt 0:00:02]} 46. Nb4+ {[%emt 0:00:17]} Kd6 {[%emt 0:00:16]} 47. c5+ {[%emt 0:00:03]} Ke6 {[%emt 0:00:01]} 48. Ke4 {[%emt 0:00:13]} Nd7 {[%emt 0:00:27]} 49. Nd3 {[%emt 0:00:06]} f5+ {[%emt 0:00:10]} 50. Kd4 {[%emt 0:00:01]} Nf6 {[%emt 0:00:08]} 51. Nf4+ {[%emt 0:00:07]} Kd7 {[%emt 0:00:02]} 52. Ng6 {[%emt 0:00:25]} Ne4 {[%emt 0:00:02]} 53. Kd5 {[%emt 0:00:23]} Nc3+ {[%emt 0:00:15]} 54. Ke5 {[%emt 0:00:01]} Ne4 {[%emt 0:00:08]} 55. Kd5 {[%emt 0:00:17]} Nc3+ {[%emt 0:00:02]} 56. Kd4 {[%emt 0:00:05]} Ne4 {[%emt 0:00:02]} 57. Nxh4 {[%emt 0:00:08]} Ng5 {[%emt 0:00:02]} 58. Nxf5 {[%emt 0:00:01]} Nxh3 {[%emt 0:00:02]} 59. c6+ {[%emt 0:00:01]} Kxc6 1/2-1/2

[Event "FIDE Open World Rapid 2024"]
[Site "New York"]
[Date "2024.12.28"]
[Round "9.40"]
[White "Wanyama, Harold"]
[Black "Esquivel Golcher, Luis Enrique"]
[Result "1-0"]
[ECO "A40"]
[WhiteElo "2154"]
[BlackElo "2081"]
[Annotator "ChessBase"]
[PlyCount "62"]
[EventDate "2024.12.14"]
[EventType "swiss"]
[EventCountry "USA"]
[SourceTitle "playchess.com"]
[Source "ChessBase"]
[SourceQuality "1"]
[TimeControl "900+10"]

1. d4 {[%emt 0:00:03]} e6 {[%emt 0:00:01]} 2. c4 {[%emt 0:00:02]} Bb4+ {[%emt 0:00:01]} 3. Nd2 {[%emt 0:00:03]} Nf6 {[%emt 0:00:03]} 4. a3 {[%emt 0:00:02]} Bxd2+ {[%emt 0:00:02]} 5. Qxd2 {[%emt 0:00:02]} d6 {[%emt 0:00:02]} 6. g3 {[%emt 0:00:09]} Qe7 {[%emt 0:00:03]} 7. Bg2 {[%emt 0:00:05]} O-O {[%emt 0:00:02]} 8. Nf3 {[%emt 0:00:06]} e5 {[%emt 0:00:13]} 9. O-O {[%emt 0:00:09]} Nc6 {[%emt 0:00:01]} 10. b4 {[%emt 0:00:08]} Bg4 {[%emt 0:00:12]} 11. dxe5 {[%emt 0:00:11]} dxe5 {[%emt 0:00:08]} 12. Bb2 {[%emt 0:00:14]} Rad8 {[%emt 0:01:12]} 13. Qe3 {[%emt 0:00:03]} Bxf3 {[%emt 0:00:35]} 14. Bxf3 {[%emt 0:00:33]} Nd4 {[%emt 0:00:03]} 15. Rad1 {[%emt 0:00:36]} c5 {[%emt 0:00:48]} 16. Bg2 {[%emt 0:02:41]} Ng4 {[%emt 0:01:31]} 17. Qd3 {[%emt 0:01:39]} f5 {[%emt 0:03:26]} 18. Bd5+ {[%emt 0:00:08]} Kh8 {[%emt 0:01:16]} 19. bxc5 {[%emt 0:00:18]} Nc6 {[%emt 0:04:21]} 20. h3 {[%emt 0:01:27]} e4 {[%emt 0:00:32]} 21. Qc3 {[%emt 0:00:15]} Nge5 {[%emt 0:00:30]} 22. Bxc6 {[%emt 0:00:14]} Nxc6 {[%emt 0:00:02]} 23. Rd6 {[%emt 0:00:05]} f4 {[%emt 0:00:35]} 24. gxf4 {[%emt 0:00:24]} Rxf4 {[%emt 0:02:51]} 25. Qg3 {[%emt 0:00:29]} Rf5 {[%emt 0:00:24]} 26. Kh1 {[%emt 0:01:13]} Qf8 {[%emt 0:00:25]} 27. Rg1 {[%emt 0:00:07]} Rf7 {[%emt 0:00:04]} 28. Rg2 {[%emt 0:00:10]} Rxd6 {[%emt 0:00:10]} 29. cxd6 {[%emt 0:00:02]} Nd8 {[%emt 0:00:05]} 30. Qe5 {[%emt 0:00:22]} Nc6 {[%emt 0:00:15]} 31. Qxe4 {[%emt 0:00:14]} b6 {[%emt 0:00:19]} 1-0

[Event "FIDE Open World Rapid 2024"]
[Site "New York"]
[Date "2024.12.27"]
[Round "9.41"]
[White "Harsha Bharathakoti"]
[Black "Van Foreest, Jorden"]
[Result "0-1"]
[ECO "D19"]
[WhiteElo "2531"]
[BlackElo "2677"]
[Annotator "ChessBase"]
[PlyCount "104"]
[EventDate "2024.12.14"]
[EventType "swiss"]
[EventCountry "USA"]
[SourceTitle "playchess.com"]
[Source "ChessBase"]
[SourceQuality "1"]
[TimeControl "900+10"]

1. d4 {[%emt 0:00:57]} d5 {[%emt 0:00:02]} 2. c4 {[%emt 0:00:02]} c6 {[%emt 0:00:02]} 3. Nf3 {[%emt 0:00:07]} Nf6 {[%emt 0:00:02]} 4. Nc3 {[%emt 0:00:06]} dxc4 {[%emt 0:00:03]} 5. a4 {[%emt 0:00:09]} Bf5 {[%emt 0:00:03]} 6. e3 {[%emt 0:00:03]} e6 {[%emt 0:00:05]} 7. Bxc4 {[%emt 0:00:02]} Bb4 {[%emt 0:00:04]} 8. O-O {[%emt 0:00:05]} O-O {[%emt 0:00:06]} 9. Qe2 {[%emt 0:00:03]} Bg6 {[%emt 0:00:04]} 10. Ne5 {[%emt 0:00:05]} Nbd7 {[%emt 0:00:09]} 11. Nxg6 {[%emt 0:00:03]} hxg6 {[%emt 0:00:03]} 12. Rd1 {[%emt 0:00:05]} Qe7 {[%emt 0:00:42]} 13. e4 {[%emt 0:00:31]} e5 {[%emt 0:00:04]} 14. d5 {[%emt 0:00:20]} Rfd8 {[%emt 0:01:33]} 15. Bg5 {[%emt 0:01:35]} a5 {[%emt 0:00:01]} 16. Rd3 {[%emt 0:02:43]} Nc5 {[%emt 0:00:43]} 17. Rg3 {[%emt 0:02:59]} Qd6 {[%emt 0:00:25]} 18. dxc6 {[%emt 0:00:45]} Bxc3 {[%emt 0:00:03]} 19. Bxf6 {[%emt 0:01:45]} gxf6 {[%emt 0:00:05]} 20. bxc3 {[%emt 0:00:57]} Kg7 {[%emt 0:00:04]} 21. cxb7 {[%emt 0:00:01]} Nxb7 {[%emt 0:00:16]} 22. Bd5 {[%emt 0:00:10]} Rab8 {[%emt 0:00:02]} 23. h4 {[%emt 0:00:18]} Nc5 {[%emt 0:01:03]} 24. h5 {[%emt 0:03:14]} Rh8 {[%emt 0:00:07]} 25. hxg6 {[%emt 0:00:20]} fxg6 {[%emt 0:00:03]} 26. Qg4 {[%emt 0:01:43]} Rh6 {[%emt 0:00:04]} 27. Rh3 {[%emt 0:00:02]} Qd7 {[%emt 0:00:12]} 28. Qxd7+ {[%emt 0:00:09]} Nxd7 {[%emt 0:00:01]} 29. Rxh6 {[%emt 0:00:02]} Kxh6 {[%emt 0:00:03]} 30. Rd1 {[%emt 0:00:09]} Nc5 {[%emt 0:00:06]} 31. Bc6 {[%emt 0:00:02]} Rb6 {[%emt 0:00:10]} 32. Bb5 {[%emt 0:00:43]} Nxe4 {[%emt 0:00:02]} 33. c4 {[%emt 0:00:01]} Rb8 {[%emt 0:00:58]} 34. Bc6 {[%emt 0:00:02]} Nc3 {[%emt 0:00:27]} 35. Rd6 {[%emt 0:00:05]} Ne2+ {[%emt 0:00:03]} 36. Kh2 {[%emt 0:00:05]} Kg5 {[%emt 0:00:21]} 37. g3 {[%emt 0:00:01]} Rb2 {[%emt 0:00:12]} 38. Bb5 {[%emt 0:00:48]} Nc3 {[%emt 0:00:20]} 39. c5 {[%emt 0:00:11]} Ne4 {[%emt 0:00:05]} 40. Rd5 {[%emt 0:00:09]} Rxf2+ {[%emt 0:00:17]} 41. Kg1 {[%emt 0:00:01]} Rc2 {[%emt 0:00:02]} 42. c6 {[%emt 0:00:01]} Kg4 {[%emt 0:00:12]} 43. Rd7 {[%emt 0:00:11]} Kxg3 {[%emt 0:00:46]} 44. Kf1 {[%emt 0:00:01]} Kf3 {[%emt 0:00:02]} 45. Rd3+ {[%emt 0:00:33]} Kf4 {[%emt 0:00:01]} 46. Rd7 {[%emt 0:00:01]} Ng5 {[%emt 0:01:58]} 47. Ke1 {[%emt 0:00:19]} e4 {[%emt 0:00:35]} 48. Re7 {[%emt 0:00:04]} e3 {[%emt 0:01:02]} 49. c7 {[%emt 0:00:01]} Ne4 {[%emt 0:00:52]} 50. Kd1 {[%emt 0:00:01]} Rc5 {[%emt 0:00:10]} 51. Ba6 {[%emt 0:00:04]} Nc3+ {[%emt 0:00:01]} 52. Ke1 {[%emt 0:00:08]} Nd5 {[%emt 0:00:01]} 0-1

[Event "FIDE Open World Rapid 2024"]
[Site "New York"]
[Date "2024.12.28"]
[Round "9.41"]
[White "Wong, Hayoung"]
[Black "Makoto, Rodwell"]
[Result "0-1"]
[ECO "E37"]
[WhiteElo "1704"]
[BlackElo "2334"]
[Annotator "ChessBase"]
[PlyCount "121"]
[EventDate "2024.12.14"]
[EventType "swiss"]
[EventCountry "USA"]
[SourceTitle "playchess.com"]
[Source "ChessBase"]
[SourceQuality "1"]
[TimeControl "900+10"]

1. d4 {[%emt 0:00:01]} Nf6 {[%emt 0:00:02]} 2. Nf3 {[%emt 0:00:01]} d5 {[%emt 0:00:02]} 3. c4 {[%emt 0:00:01]} e6 {[%emt 0:00:03]} 4. Nc3 {[%emt 0:00:02]} Bb4 {[%emt 0:00:02]} 5. Qc2 {[%emt 0:00:06]} O-O {[%emt 0:00:09]} 6. a3 {[%emt 0:00:09]} Bxc3+ {[%emt 0:00:04]} 7. Qxc3 {[%emt 0:00:02]} Ne4 {[%emt 0:00:21]} 8. Qc2 {[%emt 0:00:02]} Nd7 {[%emt 0:00:23]} 9. e3 {[%emt 0:00:38]} b6 {[%emt 0:00:14]} 10. cxd5 {[%emt 0:00:25]} exd5 {[%emt 0:00:02]} 11. Qc6 {[%emt 0:00:18]} Rb8 {[%emt 0:00:34]} 12. Qxd5 {[%emt 0:00:06]} Bb7 {[%emt 0:00:02]} 13. Qc4 {[%emt 0:00:16]} c5 {[%emt 0:00:06]} 14. Be2 {[%emt 0:00:16]} cxd4 {[%emt 0:01:01]} 15. Qxd4 {[%emt 0:00:08]} Qe7 {[%emt 0:00:23]} 16. O-O {[%emt 0:00:36]} Rfd8 {[%emt 0:00:14]} 17. b4 {[%emt 0:02:41]} f6 {[%emt 0:00:05]} 18. Qc4+ {[%emt 0:00:47]} Kh8 {[%emt 0:00:02]} 19. Bb2 {[%emt 0:00:28]} Rbc8 {[%emt 0:00:54]} 20. Qb3 {[%emt 0:00:11]} Ne5 {[%emt 0:00:36]} 21. Bxe5 {[%emt 0:01:26]} fxe5 {[%emt 0:00:02]} 22. Qb2 {[%emt 0:02:09]} Nc3 {[%emt 0:04:39]} 23. Rac1 {[%emt 0:00:12]} Nxe2+ {[%emt 0:02:19]} 24. Qxe2 {[%emt 0:00:03]} a5 {[%emt 0:00:07]} 25. Qb5 {[%emt 0:03:25]} Bxf3 {[%emt 0:00:23]} 26. gxf3 {[%emt 0:00:25]} Qg5+ {[%emt 0:00:39]} 27. Kh1 {[%emt 0:00:02]} Qf6 {[%emt 0:00:25]} 28. Qe2 {[%emt 0:00:21]} axb4 {[%emt 0:00:05]} 29. axb4 {[%emt 0:00:03]} Qh4 {[%emt 0:00:43]} 30. Qb2 {[%emt 0:00:40]} Qh3 {[%emt 0:01:05]} 31. Qe2 {[%emt 0:00:27]} h6 {[%emt 0:01:16]} 32. Rg1 {[%emt 0:00:46]} Rxc1 {[%emt 0:01:29]} 33. Rxc1 {[%emt 0:00:02]} Rf8 {[%emt 0:00:01]} 34. Rg1 {[%emt 0:01:17]} Rxf3 {[%emt 0:00:48]} 35. Rg3 {[%emt 0:00:35]} Rxg3 {[%emt 0:00:02]} 36. fxg3 {[%emt 0:00:02]} Qf5 {[%emt 0:00:01]} 37. Kg2 {[%emt 0:00:24]} Qe4+ {[%emt 0:00:02]} 38. Qf3 {[%emt 0:00:16]} Qxb4 {[%emt 0:00:02]} 39. Qf7 {[%emt 0:00:50]} Qd6 {[%emt 0:00:41]} 40. h4 {[%emt 0:00:22]} Qb8 {[%emt 0:00:02]} 41. Qd5 {[%emt 0:00:17]} b5 {[%emt 0:00:03]} 42. h5 {[%emt 0:00:19]} b4 {[%emt 0:00:01]} 43. Qb3 {[%emt 0:00:03]} Qa8+ {[%emt 0:00:18]} 44. Kh3 {[%emt 0:00:06]} Qc8+ {[%emt 0:00:32]} 45. Kh4 {[%emt 0:00:10]} Qf8 {[%emt 0:00:23]} 46. g4 {[%emt 0:00:38]} Qf2+ {[%emt 0:00:04]} 47. Kh3 {[%emt 0:00:02]} Qd2 {[%emt 0:00:05]} 48. Qe6 {[%emt 0:00:22]} Qxe3+ {[%emt 0:00:03]} 49. Kh4 {[%emt 0:00:02]} Qf2+ {[%emt 0:00:17]} 50. Kh3 {[%emt 0:00:01]} Qf3+ {[%emt 0:00:03]} 51. Kh4 {[%emt 0:00:02]} Qf8 {[%emt 0:00:02]} 52. Qc4 {[%emt 0:00:23]} Qb8 {[%emt 0:00:28]} 53. Qb3 {[%emt 0:00:05]} e4 {[%emt 0:00:04]} 54. Kh3 {[%emt 0:00:04]} Qf8 {[%emt 0:00:10]} 55. Qc4 {[%emt 0:00:12]} e3 {[%emt 0:00:05]} 56. Qe4 {[%emt 0:00:04]} b3 {[%emt 0:01:10]} 57. Qxe3 {[%emt 0:00:12]} b2 {[%emt 0:00:02]} 58. Qe1 {[%emt 0:00:06]} Qf3+ {[%emt 0:00:29]} 59. Kh4 {[%emt 0:00:14]} Qd3 {[%emt 0:00:02]} 60. Qe8+ {[%emt 0:00:30]} Kh7 {[%emt 0:00:02]} 61. Qg6+ {[%emt 0:00:27]} 0-1

[Event "FIDE Open World Rapid 2024"]
[Site "New York"]
[Date "2024.12.27"]
[Round "9.42"]
[White "Salem, A.R. Saleh"]
[Black "Grebnev, Aleksey"]
[Result "1-0"]
[ECO "E27"]
[WhiteElo "2622"]
[BlackElo "2555"]
[Annotator "ChessBase"]
[PlyCount "75"]
[EventDate "2024.12.14"]
[EventType "swiss"]
[EventCountry "USA"]
[SourceTitle "playchess.com"]
[Source "ChessBase"]
[SourceQuality "1"]
[TimeControl "900+10"]

1. d4 {[%emt 0:00:01]} Nf6 {[%emt 0:00:02]} 2. c4 {[%emt 0:00:01]} e6 {[%emt 0:00:01]} 3. Nc3 {[%emt 0:00:02]} Bb4 {[%emt 0:00:01]} 4. a3 {[%emt 0:00:00]} Bxc3+ {[%emt 0:00:04]} 5. bxc3 {[%emt 0:00:02]} O-O {[%emt 0:00:08]} 6. f3 {[%emt 0:00:01]} d6 {[%emt 0:00:32]} 7. e4 {[%emt 0:00:04]} c5 {[%emt 0:00:13]} 8. Bd3 {[%emt 0:00:02]} Nc6 {[%emt 0:00:06]} 9. Ne2 {[%emt 0:00:03]} Ne8 {[%emt 0:00:25]} 10. O-O {[%emt 0:00:12]} b6 {[%emt 0:00:02]} 11. Ra2 {[%emt 0:03:38]} Ba6 {[%emt 0:00:06]} 12. f4 {[%emt 0:00:02]} Na5 {[%emt 0:00:50]} 13. f5 {[%emt 0:00:01]} exf5 {[%emt 0:00:10]} 14. exf5 {[%emt 0:01:29]} Nf6 {[%emt 0:02:27]} 15. Bg5 {[%emt 0:00:21]} Bxc4 {[%emt 0:00:21]} 16. Bxc4 {[%emt 0:01:35]} Nxc4 {[%emt 0:00:03]} 17. Qd3 {[%emt 0:00:01]} d5 {[%emt 0:01:00]} 18. Nf4 {[%emt 0:00:03]} Nd6 {[%emt 0:04:05]} 19. Bxf6 {[%emt 0:01:03]} Qxf6 {[%emt 0:00:04]} 20. Nxd5 {[%emt 0:00:09]} Qg5 {[%emt 0:00:11]} 21. dxc5 {[%emt 0:01:01]} Ne8 {[%emt 0:04:40]} 22. c6 {[%emt 0:00:06]} Kh8 {[%emt 0:01:01]} 23. Re2 {[%emt 0:00:18]} Qd8 {[%emt 0:00:26]} 24. Qd4 {[%emt 0:04:38]} Nc7 {[%emt 0:00:17]} 25. c4 {[%emt 0:00:54]} Qd6 {[%emt 0:00:01]} 26. f6 {[%emt 0:00:29]} g6 {[%emt 0:00:04]} 27. Qe5 {[%emt 0:01:04]} Qc5+ {[%emt 0:00:16]} 28. Kh1 {[%emt 0:00:02]} Ne6 {[%emt 0:00:08]} 29. Ne7 {[%emt 0:00:15]} Qxc4 {[%emt 0:00:15]} 30. Ree1 {[%emt 0:00:35]} Qc5 {[%emt 0:01:32]} 31. Qg3 {[%emt 0:00:00]} Nd4 {[%emt 0:00:37]} 32. Qh3 {[%emt 0:01:18]} Nf5 {[%emt 0:00:09]} 33. Rc1 {[%emt 0:00:17]} Qd6 {[%emt 0:00:11]} 34. c7 {[%emt 0:00:19]} Rac8 {[%emt 0:00:10]} 35. Nxc8 {[%emt 0:00:18]} Rxc8 {[%emt 0:00:02]} 36. Rxf5 {[%emt 0:00:16]} Rxc7 {[%emt 0:00:12]} 37. Rff1 {[%emt 0:00:06]} Qxf6 {[%emt 0:00:04]} 38. Qc8+ {[%emt 0:00:06]} 1-0

[Event "FIDE Open World Rapid 2024"]
[Site "New York"]
[Date "2024.12.28"]
[Round "9.42"]
[White "Pereira, Fabian"]
[Black "Meylan, Andre"]
[Result "1/2-1/2"]
[ECO "B40"]
[WhiteElo "2123"]
[BlackElo "2138"]
[Annotator "NA"]
[PlyCount "52"]
[EventDate "2024.12.14"]
[EventType "swiss"]
[EventCountry "USA"]
[SourceTitle "playchess.com"]
[Source "ChessBase"]
[SourceQuality "1"]
[TimeControl "900+10"]

1. e4 {[%emt 0:00:01]} e6 {[%emt 0:00:01]} 2. d4 {[%emt 0:00:03]} d5 {[%emt 0:00:01]} 3. Nd2 {[%emt 0:00:01]} c5 {[%emt 0:00:02]} 4. exd5 {[%emt 0:00:13]} exd5 {[%emt 0:00:02]} 5. Ngf3 {[%emt 0:00:07]} Nc6 {[%emt 0:00:01]} 6. dxc5 {[%emt 0:00:33]} Bxc5 {[%emt 0:00:02]} 7. Nb3 {[%emt 0:00:05]} Bd6 {[%emt 0:01:02]} 8. Bd3 {[%emt 0:00:24]} Nf6 {[%emt 0:01:00]} 9. O-O {[%emt 0:00:05]} O-O {[%emt 0:00:01]} 10. h3 {[%emt 0:00:02]} Ne4 {[%emt 0:01:41]} 11. Be3 {[%emt 0:02:05]} Qf6 {[%emt 0:00:33]} 12. c3 {[%emt 0:01:06]} Ne5 {[%emt 0:01:14]} 13. Nxe5 {[%emt 0:01:19]} Qxe5 {[%emt 0:00:56]} 14. f4 {[%emt 0:00:05]} Qf6 {[%emt 0:00:18]} 15. Qf3 {[%emt 0:00:51]} Re8 {[%emt 0:00:31]} 16. Bb5 {[%emt 0:01:53]} Rd8 {[%emt 0:00:41]} 17. Rad1 {[%emt 0:00:21]} Bc7 {[%emt 0:01:19]} 18. Bd4 {[%emt 0:01:47]} Bb6 {[%emt 0:00:25]} 19. Kh2 {[%emt 0:00:24]} Bxd4 {[%emt 0:00:03]} 20. Rxd4 {[%emt 0:00:06]} Be6 {[%emt 0:00:47]} 21. Rfd1 {[%emt 0:00:30]} g6 {[%emt 0:01:15]} 22. Nc1 {[%emt 0:01:20]} Nd6 {[%emt 0:00:45]} 23. Bd3 {[%emt 0:00:25]} h5 {[%emt 0:00:26]} 24. Re1 {[%emt 0:00:30]} Rac8 {[%emt 0:01:08]} 25. Ne2 {[%emt 0:00:16]} h4 {[%emt 0:01:16]} 26. Rd1 {[%emt 0:00:14]} Re8 {[%emt 0:00:24]} 1/2-1/2